fUSD/lending_fUSD_20250628
["ID","MTS","AMOUNT","RATE_DAILY","PERIOD"]
[368338318,1751129432665,-250.0,0.00028998,2]
[368338320,1751129432675,-967.17,0.00029075,2]
[368338322,1751129432685,-269.58089802,0.00029374,2]
[368338494,1751129437565,-353.11798033,0.00029374,2]
[368338495,1751129437576,-750.68377836,0.00029374,2]
[368338496,1751129437588,-493.35529332,0.00029374,2]
[368338497,1751129437623,-1670.94204997,0.00029374,2]
[368338498,1751129437632,-307.47,0.00029402,2]
[368338499,1751129437642,-14205.0,0.00029412,2]
[368338500,1751129437657,-1739.96221657,0.00029412,2]
[368338501,1751129437667,-3602.56,0.00029413,2]
[368338502,1751129437677,-5475.1,0.00029413,2]
[368338503,1751129437687,-1000.0,0.00029438,2]
[368338504,1751129437697,-1350.26,0.00029482,2]
[368338505,1751129437706,-236.97,0.00029507,2]
[368338506,1751129437716,-153.96489779,0.00029547,2]
[368338507,1751129437727,-162.21956474,0.0002956,2]
[368338508,1751129437736,-1237.22196669,0.0002956,2]
[368338509,1751129437746,-250.0,0.000296,2]
[368338510,1751129437756,-307.47,0.00029628,2]
[368338511,1751129437766,-151.0,0.0002963,2]
[368338512,1751129437775,-64565.0776072,0.00029637,2]
[368338513,1751129437785,-307.47,0.00029637,2]
[368338514,1751129437795,-307.47,0.00029637,2]
[368338515,1751129437805,-307.47,0.00029637,2]
[368338516,1751129437815,-192907.26422307,0.00029647,2]
[368338517,1751129437825,-166.22,0.0002966,2]
[368338518,1751129437835,-9223.58251531,0.00029673,2]
[368338519,1751129437844,-200.0,0.00029683,2]
[368338520,1751129437854,-173.56,0.00029689,120]
[368338521,1751129437864,-800.0,0.000297,10]
[368338522,1751129437874,-1237.22196662,0.00029733,2]
[368338523,1751129437884,-1700.0,0.000298,10]
[368338524,1751129437894,-2600.0,0.000299,10]
[368338525,1751129437904,-1237.22196662,0.00029907,2]
[368338526,1751129437914,-153.96489779,0.00029929,2]
[368338527,1751129437923,-9223.58251531,0.00029958,2]
[368338528,1751129437933,-9223.58251531,0.0002999,2]
[368338529,1751129437943,-9223.58251531,0.00029997,2]
[368338531,1751129437952,-1000.0,0.0003,12]
[368338533,1751129437961,-1000.0,0.0003,12]
[368338535,1751129437971,-1000.0,0.0003,11]
[368338537,1751129437981,-1000.0,0.0003,11]
[368338539,1751129437990,-1000.0,0.0003,10]
[368338540,1751129438000,-1000.0,0.0003,10]
[368338541,1751129438010,-1000.0,0.0003,9]
[368338542,1751129438019,-1000.0,0.0003,9]
[368338543,1751129438030,-1000.0,0.0003,8]
[368338545,1751129438039,-1000.0,0.0003,8]
[368338548,1751129438049,-1000.0,0.0003,8]
[368338551,1751129438058,-1042.0,0.0003,7]
[368338554,1751129438068,-1000.0,0.0003,7]
[368338557,1751129438078,-1000.0,0.0003,7]
[368338559,1751129438087,-1000.0,0.0003,6]
[368338561,1751129438097,-1000.0,0.0003,6]
[368338562,1751129438106,-1000.0,0.0003,6]
[368338563,1751129438116,-1000.0,0.0003,7]
[368338564,1751129438125,-1000.0,0.0003,6]
[368338565,1751129438135,-1000.0,0.0003,6]
[368338566,1751129438144,-1000.0,0.0003,6]
[368338567,1751129438154,-539.0,0.0003,12]
[368338568,1751129438164,-1000.0,0.0003,9]
[368338569,1751129438173,-1000.0,0.0003,7]
[368338570,1751129438183,-1003.0,0.0003,5]
[368338571,1751129438192,-1000.0,0.0003,5]
[368338572,1751129438202,-1237.22196662,0.0003008,2]
[368338573,1751129438211,-9223.58251531,0.00030106,2]
[368338574,1751129438221,-7492377.61758459,0.00030107,7]
[368338577,1751129438314,-36941.60048698,0.00030107,7]
[368338580,1751129438334,-4255.49282171,0.00030107,7]
[368338582,1751129438345,-1372.86180848,0.00030107,7]
[368338584,1751129438357,-3320.23389279,0.00030107,7]
[368338588,1751129438380,-598.96978915,0.00030107,7]
[368338641,1751129438889,-957.40130345,0.00030107,7]
[368338643,1751129438901,-525.31094115,0.00030107,7]
[368338648,1751129438942,-1023.1999999,0.00030107,7]
[368338653,1751129438978,-267932.00935376,0.00030107,7]
[368338708,1751129439960,-600.0,0.000296,2]
[368338711,1751129439973,-731.00357604,0.0003,4]
[368338713,1751129439989,-268.99642396,0.0003,4]
[368338715,1751129440001,-1478.01266464,0.00030107,7]
[368338719,1751129440028,-536.7,0.00030107,7]
[368338793,1751129441030,-15616.91015174,0.00030107,7]
[368338876,1751129442764,-1666.25736656,0.00030107,7]
[368338877,1751129442817,-661.23,0.00030107,7]
[368338878,1751129442876,-70314.4026977,0.00030107,7]
[368338881,1751129443033,-1286.14545039,0.00030107,7]
[368338887,1751129445586,-1990.18381933,0.00030107,7]
[368338888,1751129445617,-1223531.1379763,0.00030107,7]
[368338890,1751129447217,-116.84051868,0.00030107,7]
[368338891,1751129447252,-524.70001114,0.00030107,7]
[368338892,1751129447264,-1867.98894938,0.00030107,7]
[368338893,1751129447276,-7306.87143358,0.00030107,7]
[368338897,1751129728226,155.23,0.00013699,2]
[368338903,1751129877197,500.0,0.000267,10]
[368338905,1751130416137,-179.60329195,0.00026,2]
[368338909,1751130631830,-205.0,0.00025763,2]
[368338910,1751130631842,-2977.96005485,0.00026,2]
[368338911,1751130631851,-223.21121926,0.00027297,2]
[368338912,1751130631861,-155.23,0.00027397,2]
[368338913,1751130631870,-205.0,0.00028046,5]
[368338914,1751130631880,-47.27464605,0.00028352,2]
[368338915,1751130631891,-1151.82858149,0.00028352,2]
[368338916,1751130631912,-938.25087976,0.00028352,2]
[368338917,1751130631924,-613.6458927,0.00028352,2]
[368338918,1751130631933,-824.46,0.00028354,2]
[368338919,1751130631943,-166.22,0.00028372,2]
[368338920,1751130631952,-174.6,0.0002856,120]
[368338921,1751130631961,-300.0,0.00028587,2]
[368338922,1751130631973,-674.0,0.00028587,2]
[368338923,1751130631984,-1560.5697453,0.00028588,2]
[368338924,1751130632031,-1842.36461268,0.00028588,2]
[368338925,1751130632045,-336.66692717,0.00028588,2]
[368338926,1751130632057,-1773.07871485,0.00028588,2]
[368338927,1751130632067,-1115.52,0.00028615,2]
[368338928,1751130632076,-640.98613414,0.0002872,120]
[368338929,1751130632104,-859.01386586,0.0002872,120]
[368338930,1751130632115,-520.04840328,0.00028721,2]
[368338931,1751130632151,-145.95159672,0.00028721,2]
[368338932,1751130632160,-9899.73,0.00028721,2]
[368338933,1751130632171,-150.0,0.0002876,2]
[368338934,1751130632180,-200.0,0.00028771,2]
[368338935,1751130632190,-1955.25,0.00028877,2]
[368338936,1751130632199,-10923.89,0.00028916,2]
[368338937,1751130632209,-206.0,0.00028926,2]
[368338938,1751130632219,-250.0,0.00028955,2]
[368338939,1751130632228,-597.45,0.00028955,2]
[368338940,1751130632237,-202.0,0.00029016,2]
[368338941,1751130632247,-2178.76,0.00029093,2]
[368338942,1751130632256,-733.4,0.00029133,2]
[368338943,1751130632265,-200.0,0.00029138,2]
[368338944,1751130632274,-1000.0,0.00029184,2]
[368338945,1751130632284,-152.32904154,0.0002926,2]
[368338947,1751130632292,-586.27,0.00029263,2]
[368338949,1751130632302,-17234.95,0.00029278,2]
[368338951,1751130632311,-167.79,0.00029397,2]
[368338953,1751130632319,-202.0,0.00029562,7]
[368338955,1751130632328,-1500.0,0.00029585,60]
[368338957,1751130632337,-166.72,0.00029658,2]
[368338959,1751130632346,-800.0,0.000297,10]
[368338961,1751130632355,-1700.0,0.000298,10]
[368338963,1751130632364,-3538.59755,0.0002981,2]
[368338965,1751130632378,-168.0,0.00029889,2]
[368338967,1751130632387,-2600.0,0.000299,10]
[368338969,1751130632396,-11481.11184397,0.00029926,2]
[368338971,1751130632405,-153.96489779,0.00029926,2]
[368338973,1751130632415,-1000.0,0.0003,2]
[368338975,1751130632424,-1000.0,0.0003,3]
[368338977,1751130632434,-1637.992851,0.0003,30]
[368338979,1751130632443,-63348.13466246,0.00030018,7]
[368339016,1751130637798,-7573584.94095879,0.00030018,7]
[368339017,1751130637850,-2724.7365,0.00030018,7]
[368339018,1751130637861,-888.66696916,0.00030018,7]
[368339144,1751130640026,-3553.0441366,0.00030017,2]
[368339146,1751130640037,-159496.5758634,0.00030018,7]
[368339176,1751130640320,-73042.97545526,0.00030018,7]
[368339179,1751130640333,-747.42495585,0.00030018,7]
[368339435,1751130642834,-2662.1625482,0.00030018,7]
[368339453,1751130642991,-5477.19630523,0.00030018,7]
[368339465,1751130643097,-350.48450587,0.00030018,7]
[368339749,1751130645909,-11061.71423208,0.00030018,7]
[368339751,1751130645921,-2106.354315,0.00030018,7]
[368339757,1751130645966,-299.99,0.00030018,7]
[368339770,1751130646085,-1503.61956088,0.00030018,7]
[368341159,1751130921588,155.46,0.00013699,2]
[368341165,1751131588623,-173.69,0.00023269,2]
[368341166,1751131618717,5000.00746485,0.00024,5]
[368341170,1751131679359,145616.91015174,0.00014,2]
[368341173,1751131724884,7400.20304235,0.0002,2]
[368341176,1751131832020,-226.74635949,0.000269,2]
[368341177,1751131832031,-1647.44590376,0.00027,3]
[368341178,1751131832040,-169.0,0.00027,7]
[368341179,1751131832050,-1000.0,0.00027863,2]
[368341180,1751131832060,-2751.0,0.0002788,2]
[368341181,1751131832070,-1200.0,0.00027899,2]
[368341182,1751131832079,-300.0,0.00027899,2]
[368341183,1751131832090,-300.0,0.00027899,2]
[368341184,1751131832099,-1562.26202335,0.000279,2]
[368341185,1751131832136,-530.89572595,0.000279,2]
[368341186,1751131832160,-506.6422507,0.000279,2]
[368341187,1751131832171,-822.89,0.000279,2]
[368341188,1751131832181,-167.89,0.00027914,2]
[368341189,1751131832190,-159.96,0.00027936,2]
[368341190,1751131832200,-1442.83,0.00027954,2]
[368341191,1751131832209,-220.2,0.00027997,2]
[368341192,1751131832219,-478.15,0.00028013,120]
[368341193,1751131832229,-3070.86,0.00028049,2]
[368341194,1751131832239,-1216.15,0.00028065,120]
[368341195,1751131832249,-1023.0,0.00028098,2]
[368341196,1751131832258,-666.0,0.00028099,2]
[368341197,1751131832267,-505.0,0.00028274,2]
[368341198,1751131832276,-151.0,0.00028469,2]
[368341199,1751131832285,-197.14,0.00028476,2]
[368341200,1751131832294,-197.14,0.00028484,2]
[368341201,1751131832306,-431.0,0.00028486,2]
[368341202,1751131832315,-197.14,0.00028491,2]
[368341203,1751131832324,-197.14,0.00028499,2]
[368341204,1751131832334,-197.14,0.00028506,2]
[368341206,1751131832345,-197.14,0.00028514,2]
[368341207,1751131832354,-197.14,0.00028521,2]
[368341208,1751131832363,-150.0,0.00028525,2]
[368341209,1751131832372,-197.14,0.00028529,2]
[368341210,1751131832381,-197.14,0.00028536,2]
[368341211,1751131832391,-197.14,0.00028544,2]
[368341213,1751131832400,-197.14,0.00028551,2]
[368341214,1751131832409,-433.0,0.00028553,2]
[368341216,1751131832419,-197.14,0.00028559,2]
[368341218,1751131832428,-197.14,0.00028566,2]
[368341219,1751131832438,-197.14,0.00028574,2]
[368341221,1751131832448,-197.14,0.00028581,2]
[368341223,1751131832458,-431.0,0.00028586,7]
[368341225,1751131832467,-197.14,0.00028589,2]
[368341227,1751131832476,-197.14,0.00028596,2]
[368341228,1751131832485,-197.14,0.00028604,2]
[368341229,1751131832495,-197.14,0.00028611,2]
[368341230,1751131832505,-197.14,0.00028619,2]
[368341232,1751131832514,-150.0,0.0002862,2]
[368341233,1751131832524,-168.0,0.00028639,2]
[368341234,1751131832534,-200.0,0.00028732,2]
[368341235,1751131832543,-1708.35994762,0.00028738,2]
[368341236,1751131832555,-535.73005238,0.00028738,2]
[368341237,1751131832564,-169.0,0.00028767,14]
[368341238,1751131832573,-19562.26065514,0.00029007,2]
[368341239,1751131832665,-509.0,0.00029007,2]
[368341240,1751131832680,-1317.11463502,0.00029007,2]
[368341243,1751131838001,-2511.62470984,0.00029007,2]
[368341244,1751131838011,-2650.51,0.00029011,2]
[368341245,1751131838021,-150.0,0.00029081,2]
[368341246,1751131838030,-150.0,0.00029081,2]
[368341247,1751131838040,-500.0,0.00029081,2]
[368341248,1751131838049,-150.0,0.00029081,2]
[368341249,1751131838058,-150.0,0.00029081,2]
[368341250,1751131838068,-250.0,0.00029081,2]
[368341251,1751131838078,-1564.2,0.00029081,2]
[368341252,1751131838087,-200.0,0.00029104,2]
[368341253,1751131838097,-155.46,0.0002911,2]
[368341254,1751131838107,-5076.51,0.00029125,2]
[368341255,1751131838116,-209.02,0.0002915,2]
[368341256,1751131838126,-150.0,0.0002915,2]
[368341257,1751131838136,-295.788,0.0002915,2]
[368341258,1751131838145,-150.0,0.0002915,2]
[368341259,1751131838155,-150.0,0.0002915,2]
[368341260,1751131838164,-150.0,0.0002915,2]
[368341261,1751131838174,-284.0,0.00029257,2]
[368341262,1751131838184,-546.0,0.00029351,7]
[368341263,1751131838193,-150.0,0.00029355,2]
[368341264,1751131838202,-500.0,0.00029355,2]
[368341265,1751131838211,-150.0,0.00029355,2]
[368341266,1751131838221,-150.0,0.00029424,2]
[368341267,1751131838230,-200.0,0.00029424,2]
[368341268,1751131838239,-150.0,0.00029424,2]
[368341269,1751131838248,-600.0,0.000296,10]
[368341271,1751131838259,-200.0,0.00029629,2]
[368341273,1751131838268,-500.0,0.00029629,2]
[368341274,1751131838277,-200.0,0.00029629,2]
[368341275,1751131838286,-285.0,0.00029698,2]
[368341276,1751131838295,-150.0,0.00029698,2]
[368341277,1751131838304,-1200.0,0.000297,10]
[368341278,1751131838313,-1081.906527,0.00029751,8]
[368341279,1751131838322,-1900.0,0.000298,10]
[368341280,1751131838331,-546.0,0.00029804,2]
[368341281,1751131838340,-153.96489779,0.00029817,2]
[368341282,1751131838349,-196.3623667,0.00029898,2]
[368341283,1751131838358,-500.0,0.00029898,2]
[368341284,1751131838367,-317.00421229,0.00029898,2]
[368341285,1751131838376,-500.0,0.00029898,2]
[368341286,1751131838385,-500.0,0.00029898,2]
[368341287,1751131838395,-500.0,0.00029898,2]
[368341288,1751131838405,-500.0,0.00029898,2]
[368341289,1751131838414,-500.0,0.00029898,2]
[368341290,1751131838423,-500.0,0.00029898,2]
[368341291,1751131838433,-500.0,0.00029898,2]
[368341292,1751131838442,-23645.34745464,0.00029899,7]
[368341293,1751131838454,-10082321.3856266,0.00029899,7]
[368341299,1751131838577,-1267.61306969,0.00029899,7]
[368341301,1751131838591,-23168.43738773,0.00029899,7]
[368341303,1751131838603,-3789.33158277,0.00029899,7]
[368341306,1751131838618,-1043.2,0.00029899,7]
[368341308,1751131838629,-4554.85964468,0.00029899,7]
[368341312,1751131838660,-905.26500005,0.00029899,7]
[368341558,1751131841182,-1309.9999,0.000298,2]
[368341564,1751131841231,-1778.26712563,0.000298,2]
[368341567,1751131841251,-400.07483383,0.000298,2]
[368341571,1751131841278,-1072.05399056,0.000298,2]
[368341581,1751131841355,-778.82581528,0.000298,2]
[368341613,1751131841658,206.0,0.00024008,2]
[368341759,1751131843055,-206.0,0.00026777,6]
[368341760,1751131843064,-206.0,0.00029545,10]
[368341761,1751131843074,-69.95085199,0.000298,2]
[368341766,1751131843116,-1669.36661816,0.000298,2]
[368341777,1751131843214,-4540.0,0.000298,2]
[368341789,1751131843317,-266.59291709,0.000298,2]
[368342057,1751131845984,-500.0,0.00029081,2]
[368342064,1751131846040,-147.00880413,0.00029081,2]
[368342066,1751131846050,-284.19119587,0.000298,2]
[368342072,1751131846096,-1501.10448,0.000298,2]
[368342074,1751131846107,-552.24013,0.000298,2]
[368342086,1751131846204,-1157.99998,0.000298,2]
[368342088,1751131846216,-1126.69573268,0.000298,2]
[368342090,1751131846227,-6913.06454165,0.000298,2]
[368342100,1751131846314,-19774.10563713,0.000298,2]
[368342102,1751131846324,-4684.17209078,0.00029899,7]
[368342105,1751131846335,-629.87016442,0.00029899,7]
[368342107,1751131846349,-696990.51631229,0.00029899,7]
[368342109,1751131846362,-963938.48980717,0.00029899,7]
[368342658,1751132090824,155.25,0.00013699,2]
[368342663,1751132853546,150.0,0.00025,2]
[368342672,1751133032386,-206.0,0.00027573,2]
[368342673,1751133032396,-594.0,0.00028599,2]
[368342674,1751133032408,-822.9,0.00028599,2]
[368342675,1751133032421,-174.6,0.00028622,120]
[368342676,1751133032431,-250.0,0.0002864,2]
[368342677,1751133032440,-608.89404762,0.00028646,2]
[368342678,1751133032452,-521.61595238,0.00028646,2]
[368342679,1751133032463,-166.22,0.00028653,2]
[368342680,1751133032473,-1000.0,0.0002873,2]
[368342681,1751133032482,-159.96,0.0002876,2]
[368342682,1751133032492,-750.68,0.00028778,2]
[368342683,1751133032502,-714.0,0.0002879,2]
[368342684,1751133032511,-280.0,0.0002879,30]
[368342685,1751133032520,-4560.33402851,0.00028791,2]
[368342686,1751133032540,-4654.99597149,0.00028791,2]
[368342687,1751133032549,-200.0,0.00028948,2]
[368342688,1751133032559,-200.0,0.00028948,2]
[368342689,1751133032568,-1325.25,0.0002898,2]
[368342690,1751133032578,-1251.36,0.00028985,2]
[368342691,1751133032587,-455.96,0.0002908,2]
[368342692,1751133032597,-910.0,0.00029122,2]
[368342694,1751133032607,-811.429895,0.00029202,8]
[368342697,1751133032616,-4110.0,0.0002928,2]
[368342699,1751133032626,-742.0,0.00029391,2]
[368342701,1751133032636,-569.0,0.0002953,2]
[368342703,1751133032645,-452.99,0.000296,2]
[368342705,1751133032655,-9999.0,0.000296,2]
[368342707,1751133032664,-9999.0,0.000296,2]
[368342709,1751133032673,-9999.0,0.000296,2]
[368342711,1751133032683,-400.0,0.000296,10]
[368342713,1751133032693,-3410.79839241,0.000296,2]
[368342715,1751133032705,-509.0,0.000296,2]
[368342720,1751133032737,-195.69956759,0.000296,2]
[368342722,1751133032747,-5461.30680479,0.000297,2]
[368343213,1751133038215,-2152.65496598,0.000297,2]
[368343225,1751133038321,-2385.03822923,0.000297,2]
[368343228,1751133038331,-900.0,0.000297,10]
[368343230,1751133038341,-197.41,0.00029736,2]
[368343232,1751133038350,-12222.0,0.000298,2]
[368343234,1751133038360,-13333.0,0.000298,3]
[368343236,1751133038370,-324.58477265,0.000298,2]
[368343238,1751133038379,-1300.0,0.000298,10]
[368343240,1751133038389,-3792.9917,0.00029816,2]
[368343242,1751133038398,-1500.0,0.00029816,2]
[368343244,1751133038407,-622.2869,0.00029816,2]
[368343246,1751133038421,-2500.0,0.00029816,2]
[368343248,1751133038431,-1000.0,0.00029816,2]
[368343250,1751133038440,-456.13,0.00029863,2]
[368343252,1751133038449,-456.13,0.00029863,2]
[368343254,1751133038459,-500.0,0.00029873,2]
[368343256,1751133038469,-2816.70868343,0.00029887,2]
[368343257,1751133038478,-500.0,0.00029889,2]
[368343260,1751133038488,-500.0,0.00029889,2]
[368343261,1751133038498,-500.0,0.00029889,2]
[368343263,1751133038508,-513.30376941,0.00029889,2]
[368343264,1751133038517,-500.0,0.00029889,2]
[368343266,1751133038527,-500.0,0.00029889,2]
[368343268,1751133038537,-500.0,0.00029889,2]
[368343270,1751133038546,-500.0,0.00029889,2]
[368343272,1751133038555,-500.0,0.00029889,2]
[368343273,1751133038564,-10033501.80157188,0.0002989,7]
[368343279,1751133038615,-75569.03083236,0.0002989,7]
[368343281,1751133038626,-758.40900333,0.0002989,7]
[368343459,1751133040332,-271.12712779,0.0002989,7]
[368343507,1751133040804,-311.98467846,0.0002989,7]
[368343551,1751133041224,-359.6178514,0.0002989,7]
[368343553,1751133041237,-311.98467846,0.0002989,7]
[368343555,1751133041249,-1277.55792854,0.0002989,7]
[368343559,1751133041279,-44319.20807734,0.0002989,7]
[368343562,1751133041290,-1963.06886025,0.0002989,7]
[368345252,1751133070546,-772257.97067206,0.00038705,60]
[368345253,1751133070572,-149000.0,0.00038705,120]
[368345254,1751133070600,-190347.58,0.00038705,60]
[368345255,1751133070626,-410159.41,0.00038705,60]
[368345256,1751133070652,-379244.41,0.00038705,120]
[368345257,1751133070765,-510955.87,0.00038705,60]
[368345258,1751133070792,-2000.0,0.00038705,120]
[368345259,1751133070817,-1692.0,0.00038705,120]
[368345260,1751133070843,-1519.89550569,0.00038705,120]
[368345261,1751133070868,-1521.34288205,0.00038705,120]
[368345262,1751133070894,-1680.55353231,0.00038705,120]
[368345263,1751133070919,-20402.22259532,0.00038705,120]
[368345264,1751133070950,-200000.0,0.00038705,60]
[368345265,1751133070974,-200000.0,0.00038705,60]
[368345266,1751133071001,-159218.74481257,0.00038705,60]
[368345267,1751133076174,-40781.25518743,0.00038705,60]
[368345268,1751133076202,-200000.0,0.00038705,60]
[368345269,1751133076228,-200000.0,0.00038705,60]
[368345270,1751133076257,-186.0,0.00038705,120]
[368345271,1751133076284,-1500.0,0.00038705,120]
[368345272,1751133076311,-1100.04551868,0.00038705,120]
[368345273,1751133076339,-1002.8255058,0.00038705,120]
[368345274,1751133076369,-7296.59552113,0.00038705,120]
[368345275,1751133076396,-402.93187726,0.00038705,120]
[368345276,1751133076422,-561.79679393,0.00038705,120]
[368345277,1751133076452,-20967.63811772,0.00038705,60]
[368345278,1751133076484,-2291.63984988,0.00038705,120]
[368345280,1751133115737,155.25,0.00013699,2]
[368345281,1751133572900,150.0,0.00025,2]
[368345283,1751133648932,262.58749994,0.00025,2]
[368345284,1751133649216,262.58749994,0.00025,2]
[368345285,1751133652275,151.0,0.00025,2]
[368345303,1751133730663,4061.2,0.00038708,60]
[368345304,1751133733151,218.82291662,0.00025,2]
[368345305,1751133733211,151.0,0.00025,2]
[368345306,1751133736142,164.11718747,0.00025,2]
[368345307,1751133739120,151.0,0.00025,2]
[368345312,1751133764458,1996.03,0.00038708,60]
[368345893,1751133949995,151.0,0.00025,2]
[368345894,1751133950865,190.35156239,0.00025,2]
[368345968,1751133991012,-206.0,0.00026075,2]
[368345969,1751133991033,-5.60311891,0.00028766,2]
[368346024,1751134146577,156.13,0.00013699,2]
[368346057,1751134187661,286.71,0.00028,30]
[368346059,1751134231500,-167.89,0.00028428,2]
[368346060,1751134231511,-154.35688109,0.00028766,2]
[368346061,1751134231520,-125.66589903,0.00028822,120]
[368346062,1751134231531,-256.85410097,0.00028822,120]
[368346063,1751134231540,-1000.0,0.00028836,2]
[368346064,1751134231550,-168.0,0.00028891,2]
[368346065,1751134231559,-2028.93,0.00028915,2]
[368346066,1751134231569,-200.0,0.00028924,2]
[368346067,1751134231578,-207.4,0.00028935,2]
[368346068,1751134231587,-6912.642,0.00028935,2]
[368346069,1751134231597,-53.67232835,0.00028946,2]
[368346072,1751134237400,-662.62,0.00028524,2]
[368346073,1751134237410,-947.40767165,0.00028946,2]
[368346074,1751134237420,-6803.35,0.00028953,2]
[368346075,1751134237431,-2633.14774055,0.0002899,2]
[368346076,1751134237443,-4535.26201345,0.0002899,2]
[368346077,1751134237453,-202.0,0.00029025,2]
[368346078,1751134237463,-4340.21702733,0.00029045,2]
[368346079,1751134237494,-3093.42388757,0.00029045,2]
[368346080,1751134237503,-168.0,0.00029057,2]
[368346081,1751134237514,-799.17,0.000291,2]
[368346082,1751134237523,-462.59,0.000291,2]
[368346083,1751134237532,-799.17,0.000291,2]
[368346084,1751134237542,-462.59,0.000291,2]
[368346085,1751134237550,-799.17,0.000291,2]
[368346086,1751134237560,-462.59,0.000291,2]
[368346087,1751134237570,-300.62,0.000291,2]
[368346088,1751134237581,-342.09,0.000291,2]
[368346089,1751134237590,-327.46,0.000291,2]
[368346090,1751134237599,-150.0,0.000291,2]
[368346091,1751134237608,-799.17,0.000291,2]
[368346092,1751134237616,-355.35,0.000291,2]
[368346093,1751134237625,-300.0,0.000291,2]
[368346094,1751134237634,-257.32,0.000291,2]
[368346095,1751134237644,-797.09,0.000291,2]
[368346096,1751134237654,-911.92,0.000291,2]
[368346097,1751134237664,-150.0,0.000291,2]
[368346098,1751134237673,-7708.68562875,0.000291,2]
[368346099,1751134237683,-156.13,0.0002911,2]
[368346100,1751134237693,-7993.90699701,0.00029155,2]
[368346101,1751134237703,-456.13,0.00029178,2]
[368346102,1751134237712,-462.59,0.000292,2]
[368346103,1751134237722,-799.17,0.000292,2]
[368346105,1751134237732,-462.59,0.000292,2]
[368346106,1751134237741,-608.572421,0.00029202,8]
[368346107,1751134237751,-5620.4714442,0.0002921,2]
[368346108,1751134237761,-168.0,0.00029265,7]
[368346109,1751134237770,-462.59,0.000293,2]
[368346111,1751134237780,-799.17,0.000293,2]
[368346113,1751134237790,-462.59,0.000293,2]
[368346115,1751134237799,-168.0,0.00029397,2]
[368346117,1751134237809,-206.0,0.00029468,7]
[368346120,1751134237819,-400.0,0.000295,10]
[368346121,1751134237834,-462.59,0.000296,2]
[368346124,1751134237844,-799.17,0.000296,2]
[368346128,1751134237854,-462.59,0.000296,2]
[368346131,1751134237865,-799.17,0.000296,2]
[368346133,1751134237875,-462.59,0.000296,2]
[368346137,1751134237891,-800.0,0.000296,10]
[368346140,1751134237902,-168.0,0.00029659,2]
[368346142,1751134237913,-1200.0,0.000297,10]
[368346144,1751134237923,-4713.6914,0.00029716,2]
[368346146,1751134237934,-272.7712,0.00029716,2]
[368346147,1751134237945,-2500.0,0.00029716,2]
[368346148,1751134237957,-1000.0,0.00029716,2]
[368346149,1751134237967,-11472.30778106,0.00029716,2]
[368346150,1751134237978,-174.39,0.00029726,2]
[368346151,1751134237990,-3533.33624723,0.00029765,2]
[368346152,1751134238000,-500.0,0.00029789,2]
[368346153,1751134238011,-196.19385227,0.00029789,2]
[368346154,1751134238022,-199.73340085,0.00029789,2]
[368346155,1751134238032,-500.0,0.00029789,2]
[368346156,1751134238043,-500.0,0.00029789,2]
[368346157,1751134238054,-187.34819727,0.00029789,2]
[368346158,1751134238065,-500.0,0.00029789,2]
[368346159,1751134238076,-500.0,0.00029789,2]
[368346160,1751134238087,-500.0,0.00029789,2]
[368346161,1751134238097,-592.89072685,0.00029789,2]
[368346162,1751134238108,-500.0,0.00029789,2]